[Event "XIX Najdorf Memorial 2019"]
[Site "Warsaw"]
[Date "2019.07.14"]
[Round "9.32"]
[White "Parol, Pola"]
[Black "Shkliar, Boris"]
[Result "1/2-1/2"]
[ECO "B01"]
[WhiteElo "2064"]
[BlackElo "2160"]
[Annotator "ChessBase"]
[PlyCount "100"]
[EventDate "2019.07.06"]
[EventType "swiss"]
[EventCountry "POL"]
[SourceTitle "playchess.com"]
[Source "ChessBase"]
[SourceQuality "1"]
[TimeControl "40/5400+30:1800+30"]

1. e4 {[%emt 0:00:00]} d5 {[%emt 0:05:14]} 2. exd5 {[%emt 0:01:00]} Qxd5 {[%emt 0:00:01]} 3. Nc3 {[%emt 0:00:40]} Qa5 {[%emt 0:00:02]} 4. d4 {[%emt 0:00:34]} Nf6 {[%emt 0:00:03]} 5. Nf3 {[%emt 0:01:03]} Bg4 {[%emt 0:00:12]} 6. h3 {[%emt 0:01:24]} Bh5 {[%emt 0:00:05]} 7. Bc4 {[%emt 0:04:57]} Nc6 {[%emt 0:02:23]} 8. g4 {[%emt 0:04:29]} Bg6 {[%emt 0:01:49]} 9. Bd2 {[%emt 0:03:06]} O-O-O {[%emt 0:05:19]} 10. d5 {[%emt 0:26:45]} Nb4 {[%emt 0:06:20]} 11. Bb3 {[%emt 0:02:34]} Qa6 {[%emt 0:03:15]} 12. Bg5 {[%emt 0:05:05]} Nfxd5 {[%emt 0:11:01]} 13. Nxd5 {[%emt 0:02:03]} Rxd5 {[%emt 0:00:31]} 14. Bxd5 {[%emt 0:10:32]} Nxc2+ {[%emt 0:00:35]} 15. Kd2 {[%emt 0:00:41]} Nxa1 {[%emt 0:01:36]} 16. Kc1 {[%emt 0:07:17]} Qa5 {[%emt 0:11:12]} 17. Qd4 {[%emt 0:02:13]} c6 {[%emt 0:13:01]} 18. Bc4 {[%emt 0:03:19]} Nc2 {[%emt 0:04:33]} 19. Qf4 {[%emt 0:01:00]} e5 {[%emt 0:02:57]} 20. Qxe5 {[%emt 0:03:25]} Qxe5 {[%emt 0:01:05]} 21. Nxe5 {[%emt 0:00:07]} f6 {[%emt 0:06:44]} 22. Be6+ {[%emt 0:03:45]} Kc7 {[%emt 0:00:48]} 23. Nxg6 {[%emt 0:01:55]} hxg6 {[%emt 0:00:09]} 24. Bxf6 {[%emt 0:04:10]} gxf6 {[%emt 0:02:35]} 25. Kxc2 {[%emt 0:00:04]} Bc5 {[%emt 0:00:17]} 26. f4 {[%emt 0:00:46]} Kd6 {[%emt 0:02:38]} 27. Bf7 {[%emt 0:01:18]} g5 {[%emt 0:00:17]} 28. fxg5 {[%emt 0:00:58]} fxg5 {[%emt 0:00:02]} 29. Rd1+ {[%emt 0:00:55]} Ke7 {[%emt 0:00:42]} 30. Bh5 {[%emt 0:00:05]} Rf8 {[%emt 0:00:12]} 31. Rd3 {[%emt 0:02:48]} Rf6 {[%emt 0:02:54]} 32. Rd2 {[%emt 0:00:28]} Rf3 {[%emt 0:00:50]} 33. Rd3 {[%emt 0:00:18]} Rf4 {[%emt 0:07:24]} 34. Bg6 {[%emt 0:01:41]} Bd4 {[%emt 0:00:02]} 35. Bf5 {[%emt 0:02:27]} Rf2+ {[%emt 0:04:39]} 36. Kd1 {[%emt 0:01:14]} c5 {[%emt 0:00:07]} 37. b4 {[%emt 0:00:39]} Rxa2 {[%emt 0:03:04]} 38. bxc5 {[%emt 0:00:05]} Bxc5 {[%emt 0:00:16]} 39. Rd7+ {[%emt 0:00:16]} Kf6 {[%emt 0:00:02]} 40. Rxb7 {[%emt 0:00:00]} Ke5 {[%emt 0:00:00]} 41. Kc1 {[%emt 0:08:00]} Rh2 {[%emt 0:04:25]} 42. Rb3 {[%emt 0:03:16]} Kf4 {[%emt 0:09:37]} 43. Kd1 {[%emt 0:08:32]} Be3 {[%emt 0:00:21]} 44. Rb4+ {[%emt 0:00:28]} Kf3 {[%emt 0:01:05]} 45. Be4+ {[%emt 0:00:33]} Kg3 {[%emt 0:00:22]} 46. Rb3 {[%emt 0:01:00]} Kf4 {[%emt 0:00:35]} 47. Rb4 {[%emt 0:00:35]} Ke5 {[%emt 0:00:37]} 48. Bb7 {[%emt 0:03:29]} Rxh3 {[%emt 0:03:41]} 49. Rb3 {[%emt 0:01:13]} Kd4 {[%emt 0:01:55]} 50. Ra3 {[%emt 0:01:25]} Rh2 {[%emt 0:07:26]} 1/2-1/2